[Event "SWE-ch Junior 2019"]
[Site "Eskilstuna"]
[Date "2019.07.07"]
[Round "2.4"]
[White "Sorensen, Hampus"]
[Black "Storme, Isak"]
[Result "0-1"]
[ECO "A11"]
[WhiteElo "2352"]
[BlackElo "2330"]
[Annotator "NA"]
[PlyCount "60"]
[EventDate "2019.07.06"]
[EventType "tourn"]
[EventCountry "SWE"]
[SourceTitle "playchess.com"]
[Source "ChessBase"]
[SourceQuality "1"]
[TimeControl "40/5400+30:1800+30"]

1. c4 {[%emt 0:00:19]} c6 {[%emt 0:00:00]} 2. Nf3 {[%emt 0:02:24]} d5 {[%emt 0:00:02]} 3. e3 {[%emt 0:01:20]} Nf6 {[%emt 0:04:14]} 4. Nc3 {[%emt 0:00:09]} e6 {[%emt 0:00:18]} 5. b3 {[%emt 0:00:59]} Bd6 {[%emt 0:01:17]} 6. Bb2 {[%emt 0:00:22]} O-O {[%emt 0:00:33]} 7. Qc2 {[%emt 0:00:47]} Nbd7 {[%emt 0:02:32]} 8. h3 {[%emt 0:01:48]} b6 {[%emt 0:17:14]} 9. g4 {[%emt 0:01:47]} Bb7 {[%emt 0:09:50]} 10. g5 {[%emt 0:02:20]} Ne8 {[%emt 0:00:57]} 11. h4 {[%emt 0:14:04]} f5 {[%emt 0:12:31]} 12. gxf6 {[%emt 0:06:05]} Qxf6 {[%emt 0:02:01]} 13. Be2 {[%emt 0:09:24]} Ne5 {[%emt 0:02:40]} 14. Rh3 {[%emt 0:06:10]} dxc4 {[%emt 0:05:40]} 15. O-O-O {[%emt 0:14:36]} cxb3 {[%emt 0:05:44]} 16. axb3 {[%emt 0:00:08]} Qf5 {[%emt 0:04:55]} 17. Qxf5 {[%emt 0:11:45]} exf5 {[%emt 0:00:12]} 18. Nb5 {[%emt 0:08:06]} cxb5 {[%emt 0:05:30]} 19. Nxe5 {[%emt 0:00:56]} Bd5 {[%emt 0:02:40]} 20. Bxb5 {[%emt 0:02:35]} Bxb3 {[%emt 0:01:24]} 21. Rg1 {[%emt 0:00:06]} Rc8+ {[%emt 0:01:20]} 22. Kb1 {[%emt 0:00:02]} Rc5 {[%emt 0:08:13]} 23. Bxe8 {[%emt 0:01:05]} Bc2+ {[%emt 0:00:08]} 24. Kc1 {[%emt 0:00:18]} Bd3+ {[%emt 0:00:38]} 25. Kd1 {[%emt 0:00:23]} Bxe5 {[%emt 0:00:28]} 26. Bxe5 {[%emt 0:00:10]} Rxe5 {[%emt 0:01:46]} 27. Ba4 {[%emt 0:01:11]} Ra5 {[%emt 0:00:15]} 28. Bb3+ {[%emt 0:00:05]} Kh8 {[%emt 0:00:06]} 29. Ke1 {[%emt 0:00:37]} Ra1+ {[%emt 0:00:32]} 30. Bd1 {[%emt 0:00:02]} Rc8 {[%emt 0:00:49]} 0-1

[Event "SWE-ch Junior 2019"]
[Site "Eskilstuna"]
[Date "2019.07.07"]
[Round "2.5"]
[White "Torngren, Gustav"]
[Black "Rasti, Arvin"]
[Result "1/2-1/2"]
[ECO "D36"]
[WhiteElo "2109"]
[BlackElo "2220"]
[Annotator "NA"]
[PlyCount "88"]
[EventDate "2019.07.06"]
[EventType "tourn"]
[EventCountry "SWE"]
[SourceTitle "playchess.com"]
[Source "ChessBase"]
[SourceQuality "1"]
[TimeControl "40/5400+30:1800+30"]

1. d4 {[%emt 0:00:00]} d5 {[%emt 0:00:00]} 2. c4 {[%emt 0:00:00]} e6 {[%emt 0:00:00]} 3. Nc3 {[%emt 0:00:15]} c6 {[%emt 0:00:05]} 4. cxd5 {[%emt 0:00:10]} exd5 {[%emt 0:00:05]} 5. Qc2 {[%emt 0:00:46]} Nf6 {[%emt 0:04:25]} 6. Bg5 {[%emt 0:00:26]} Be7 {[%emt 0:01:27]} 7. e3 {[%emt 0:00:51]} Nbd7 {[%emt 0:01:13]} 8. Bd3 {[%emt 0:00:47]} O-O {[%emt 0:00:10]} 9. Nf3 {[%emt 0:04:56]} Re8 {[%emt 0:00:40]} 10. O-O {[%emt 0:00:31]} Nf8 {[%emt 0:00:33]} 11. Bxf6 {[%emt 0:00:26]} Bxf6 {[%emt 0:00:20]} 12. b4 {[%emt 0:00:06]} Bg4 {[%emt 0:08:38]} 13. Nd2 {[%emt 0:01:40]} Rc8 {[%emt 0:01:45]} 14. Bf5 {[%emt 0:00:10]} Bxf5 {[%emt 0:01:19]} 15. Qxf5 {[%emt 0:02:50]} Ne6 {[%emt 0:03:38]} 16. Rfc1 {[%emt 0:06:17]} g6 {[%emt 0:10:08]} 17. Qd3 {[%emt 0:05:16]} Qd6 {[%emt 0:01:04]} 18. Rab1 {[%emt 0:06:44]} Red8 {[%emt 0:01:07]} 19. Rc2 {[%emt 0:19:38]} b6 {[%emt 0:08:42]} 20. Qa6 {[%emt 0:09:01]} Qd7 {[%emt 0:09:56]} 21. Ne2 {[%emt 0:03:13]} Rc7 {[%emt 0:03:55]} 22. Rbc1 {[%emt 0:02:24]} Rdc8 {[%emt 0:01:32]} 23. Nf3 {[%emt 0:01:18]} h5 {[%emt 0:03:41]} 24. Qa4 {[%emt 0:09:17]} Qd6 {[%emt 0:02:44]} 25. Qb3 {[%emt 0:01:39]} h4 {[%emt 0:04:18]} 26. h3 {[%emt 0:00:26]} Kh8 {[%emt 0:01:36]} 27. Rd1 {[%emt 0:02:00]} Qd7 {[%emt 0:06:44]} 28. Nc1 {[%emt 0:01:15]} Ng5 {[%emt 0:02:06]} 29. Nxg5 {[%emt 0:01:39]} Bxg5 {[%emt 0:00:01]} 30. Qd3 {[%emt 0:01:30]} Be7 {[%emt 0:01:29]} 31. Qd2 {[%emt 0:01:02]} g5 {[%emt 0:02:07]} 32. Nd3 {[%emt 0:01:24]} f6 {[%emt 0:01:38]} 33. Qe2 {[%emt 0:00:19]} Rg8 {[%emt 0:01:39]} 34. Qg4 {[%emt 0:01:44]} f5 {[%emt 0:02:25]} 35. Qh5+ {[%emt 0:00:09]} Kg7 {[%emt 0:00:10]} 36. Ne5 {[%emt 0:00:41]} Qe6 {[%emt 0:00:11]} 37. b5 {[%emt 0:07:25]} Rh8 {[%emt 0:01:57]} 38. Qe2 {[%emt 0:01:32]} c5 {[%emt 0:00:39]} 39. f4 {[%emt 0:00:42]} c4 {[%emt 0:01:29]} 40. Kh1 {[%emt 0:02:18]} Bf6 {[%emt 0:02:25]} 41. Qf3 {[%emt 0:32:32]} Bxe5 {[%emt 0:31:32]} 42. dxe5 {[%emt 0:03:06]} gxf4 {[%emt 0:01:53]} 43. Qxf4 {[%emt 0:01:44]} Kg6 {[%emt 0:05:29]} 44. Rf2 {[%emt 0:00:00]} Rh5 {[%emt 0:00:00]} 1/2-1/2

[Event "SWE-ch Junior 2019"]
[Site "Eskilstuna"]
[Date "2019.07.08"]
[Round "3.1"]
[White "Petersson, Baldur Teodor"]
[Black "Carlsson, Ludvig"]
[Result "1-0"]
[ECO "A05"]
[WhiteElo "2179"]
[BlackElo "2218"]
[Annotator "NA"]
[PlyCount "89"]
[EventDate "2019.07.06"]
[EventType "tourn"]
[EventCountry "SWE"]
[SourceTitle "playchess.com"]
[Source "ChessBase"]
[SourceQuality "1"]
[TimeControl "40/5400+30:1800+30"]

1. e4 {[%emt 0:00:00]} e6 {[%emt 0:00:00]} 2. d3 {[%emt 0:00:00]} c5 {[%emt 0:00:00]} 3. Nf3 {[%emt 0:00:00]} b6 {[%emt 0:00:06]} 4. g3 {[%emt 0:00:25]} Bb7 {[%emt 0:00:09]} 5. Bg2 {[%emt 0:00:06]} d6 {[%emt 0:00:10]} 6. O-O {[%emt 0:01:15]} Nf6 {[%emt 0:00:09]} 7. Re1 {[%emt 0:01:34]} Be7 {[%emt 0:02:15]} 8. c3 {[%emt 0:02:13]} O-O {[%emt 0:00:59]} 9. Nbd2 {[%emt 0:01:02]} Nc6 {[%emt 0:01:12]} 10. Nf1 {[%emt 0:04:12]} b5 {[%emt 0:14:59]} 11. a3 {[%emt 0:03:01]} Ne5 {[%emt 0:21:38]} 12. Nxe5 {[%emt 0:13:36]} dxe5 {[%emt 0:02:03]} 13. f4 {[%emt 0:00:07]} exf4 {[%emt 0:00:08]} 14. Bxf4 {[%emt 0:00:51]} Qb6 {[%emt 0:05:57]} 15. Qe2 {[%emt 0:04:09]} c4+ {[%emt 0:10:49]} 16. d4 {[%emt 0:01:08]} Bc6 {[%emt 0:00:06]} 17. Kh1 {[%emt 0:13:49]} Qb7 {[%emt 0:00:41]} 18. Nd2 {[%emt 0:01:47]} Rfe8 {[%emt 0:09:54]} 19. Bg5 {[%emt 0:01:18]} Rec8 {[%emt 0:14:43]} 20. Bxf6 {[%emt 0:05:22]} Bxf6 {[%emt 0:00:32]} 21. e5 {[%emt 0:00:10]} Bxg2+ {[%emt 0:00:08]} 22. Qxg2 {[%emt 0:00:04]} Qxg2+ {[%emt 0:00:08]} 23. Kxg2 {[%emt 0:00:05]} Be7 {[%emt 0:00:06]} 24. Ne4 {[%emt 0:01:59]} Rab8 {[%emt 0:04:01]} 25. Red1 {[%emt 0:01:56]} a6 {[%emt 0:02:50]} 26. d5 {[%emt 0:04:30]} exd5 {[%emt 0:00:06]} 27. Rxd5 {[%emt 0:00:00]} Rd8 {[%emt 0:00:09]} 28. Rad1 {[%emt 0:00:03]} Rxd5 {[%emt 0:02:54]} 29. Rxd5 {[%emt 0:02:14]} Rd8 {[%emt 0:04:14]} 30. Rxd8+ {[%emt 0:00:06]} Bxd8 {[%emt 0:00:05]} 31. Nc5 {[%emt 0:00:15]} a5 {[%emt 0:00:10]} 32. Nb7 {[%emt 0:00:08]} Bc7 {[%emt 0:01:10]} 33. Nd6 {[%emt 0:00:06]} Bxd6 {[%emt 0:03:28]} 34. exd6 {[%emt 0:00:06]} Kf8 {[%emt 0:00:03]} 35. Kf3 {[%emt 0:00:07]} Ke8 {[%emt 0:00:15]} 36. Ke4 {[%emt 0:00:07]} Kd7 {[%emt 0:00:25]} 37. Kd5 {[%emt 0:00:09]} f5 {[%emt 0:00:13]} 38. h4 {[%emt 0:01:34]} a4 {[%emt 0:01:33]} 39. Ke5 {[%emt 0:04:36]} g6 {[%emt 0:00:30]} 40. Kd5 {[%emt 0:00:04]} Kd8 {[%emt 0:00:31]} 41. Ke6 {[%emt 0:32:06]} h5 {[%emt 0:03:51]} 42. Kf6 {[%emt 0:00:00]} Kd7 {[%emt 0:00:31]} 43. Kxg6 {[%emt 0:00:00]} Kxd6 {[%emt 0:00:04]} 44. Kxh5 {[%emt 0:00:00]} Kd5 {[%emt 0:00:43]} 45. Kg5 {[%emt 0:00:00]} 1-0

[Event "SWE-ch Junior 2019"]
[Site "Eskilstuna"]
[Date "2019.07.08"]
[Round "3.2"]
[White "Sundin, Emanuel"]
[Black "Joensson, Jacob"]
[Result "1-0"]
[ECO "C18"]
[WhiteElo "2134"]
[BlackElo "1981"]
[Annotator "NA"]
[PlyCount "53"]
[EventDate "2019.07.06"]
[EventType "tourn"]
[EventCountry "SWE"]
[SourceTitle "playchess.com"]
[Source "ChessBase"]
[SourceQuality "1"]
[TimeControl "40/5400+30:1800+30"]

1. e4 {[%emt 0:00:00]} e6 {[%emt 0:00:00]} 2. d4 {[%emt 0:00:06]} d5 {[%emt 0:00:00]} 3. Nc3 {[%emt 0:00:57]} Bb4 {[%emt 0:00:07]} 4. e5 {[%emt 0:00:13]} c5 {[%emt 0:00:06]} 5. a3 {[%emt 0:00:25]} Bxc3+ {[%emt 0:00:07]} 6. bxc3 {[%emt 0:00:03]} Qa5 {[%emt 0:00:08]} 7. Bd2 {[%emt 0:01:01]} Qa4 {[%emt 0:00:10]} 8. Qg4 {[%emt 0:01:16]} g6 {[%emt 0:00:51]} 9. Nf3 {[%emt 0:00:45]} Nc6 {[%emt 0:01:17]} 10. Be2 {[%emt 0:02:31]} b6 {[%emt 0:16:26]} 11. c4 {[%emt 0:15:23]} Nge7 {[%emt 0:18:24]} 12. O-O {[%emt 0:08:32]} Ba6 {[%emt 0:12:25]} 13. dxc5 {[%emt 0:21:45]} bxc5 {[%emt 0:04:10]} 14. Bg5 {[%emt 0:14:18]} Qxc2 {[%emt 0:22:19]} 15. Rfe1 {[%emt 0:02:09]} Qf5 {[%emt 0:06:08]} 16. Qh4 {[%emt 0:01:14]} h5 {[%emt 0:01:18]} 17. Bf6 {[%emt 0:03:03]} Rg8 {[%emt 0:01:10]} 18. Ng5 {[%emt 0:02:17]} Nd4 {[%emt 0:01:35]} 19. Nxf7 {[%emt 0:11:35]} Kxf7 {[%emt 0:01:23]} 20. Bxe7 {[%emt 0:00:50]} Nc2 {[%emt 0:01:30]} 21. Bxc5 {[%emt 0:01:11]} Kg7 {[%emt 0:01:27]} 22. Red1 {[%emt 0:06:12]} Nxa1 {[%emt 0:00:42]} 23. Bd3 {[%emt 0:00:57]} Qf7 {[%emt 0:01:08]} 24. Rxa1 {[%emt 0:00:06]} Rac8 {[%emt 0:01:40]} 25. Be7 {[%emt 0:00:40]} Bxc4 {[%emt 0:01:03]} 26. Bf6+ {[%emt 0:00:09]} Kh7 {[%emt 0:00:52]} 27. Qxh5# {[%emt 0:00:11]} 1-0

[Event "SWE-ch Junior 2019"]
[Site "Eskilstuna"]
[Date "2019.07.08"]
[Round "3.3"]
[White "Storme, Isak"]
[Black "Pantzar, Milton"]
[Result "0-1"]
[ECO "C55"]
[WhiteElo "2330"]
[BlackElo "2357"]
[Annotator "NA"]
[PlyCount "84"]
[EventDate "2019.07.06"]
[EventType "tourn"]
[EventCountry "SWE"]
[SourceTitle "playchess.com"]
[Source "ChessBase"]
[SourceQuality "1"]
[TimeControl "40/5400+30:1800+30"]

1. e4 {[%emt 0:00:00]} e5 {[%emt 0:00:00]} 2. Nf3 {[%emt 0:00:00]} Nc6 {[%emt 0:00:00]} 3. Bc4 {[%emt 0:00:00]} Nf6 {[%emt 0:00:29]} 4. d3 {[%emt 0:00:00]} Be7 {[%emt 0:01:00]} 5. O-O {[%emt 0:00:34]} O-O {[%emt 0:00:51]} 6. Re1 {[%emt 0:01:33]} d6 {[%emt 0:00:34]} 7. a3 {[%emt 0:05:35]} Kh8 {[%emt 0:04:09]} 8. Nc3 {[%emt 0:09:42]} Bg4 {[%emt 0:09:43]} 9. h3 {[%emt 0:04:28]} Bh5 {[%emt 0:01:01]} 10. Nd5 {[%emt 0:12:20]} Nxd5 {[%emt 0:11:41]} 11. Bxd5 {[%emt 0:00:47]} Bxf3 {[%emt 0:11:44]} 12. Qxf3 {[%emt 0:00:54]} Nd4 {[%emt 0:00:33]} 13. Qd1 {[%emt 0:00:39]} c6 {[%emt 0:00:20]} 14. Ba2 {[%emt 0:01:33]} Bg5 {[%emt 0:01:36]} 15. c3 {[%emt 0:04:27]} Ne6 {[%emt 0:01:38]} 16. Qg4 {[%emt 0:06:59]} Bxc1 {[%emt 0:02:32]} 17. Raxc1 {[%emt 0:00:07]} Nf4 {[%emt 0:02:17]} 18. Rcd1 {[%emt 0:04:30]} f5 {[%emt 0:02:05]} 19. exf5 {[%emt 0:00:46]} h5 {[%emt 0:00:33]} 20. Qf3 {[%emt 0:04:30]} Rxf5 {[%emt 0:00:33]} 21. d4 {[%emt 0:02:40]} Qf6 {[%emt 0:05:43]} 22. dxe5 {[%emt 0:01:38]} dxe5 {[%emt 0:00:29]} 23. Kh1 {[%emt 0:13:42]} Rf8 {[%emt 0:22:55]} 24. Bb1 {[%emt 0:16:38]} Rg5 {[%emt 0:00:05]} 25. Qe4 {[%emt 0:01:47]} g6 {[%emt 0:01:05]} 26. Rg1 {[%emt 0:01:08]} Rg4 {[%emt 0:02:40]} 27. Qe3 {[%emt 0:01:21]} Qg5 {[%emt 0:05:52]} 28. Be4 {[%emt 0:04:13]} Rf7 {[%emt 0:02:01]} 29. Kh2 {[%emt 0:01:24]} Kh7 {[%emt 0:04:24]} 30. Rd6 {[%emt 0:00:17]} Qh4 {[%emt 0:02:02]} 31. Bf3 {[%emt 0:00:37]} Rg5 {[%emt 0:00:58]} 32. Be4 {[%emt 0:00:24]} Rg4 {[%emt 0:02:16]} 33. Bf3 {[%emt 0:00:21]} Rg5 {[%emt 0:00:10]} 34. Be4 {[%emt 0:00:18]} a5 {[%emt 0:01:18]} 35. Rgd1 {[%emt 0:00:47]} Kh6 {[%emt 0:01:27]} 36. Rd7 {[%emt 0:00:30]} Nxg2 {[%emt 0:00:31]} 37. Bxg2 {[%emt 0:00:37]} Qxf2 {[%emt 0:00:10]} 38. Qe4 {[%emt 0:00:41]} Rf4 {[%emt 0:00:29]} 39. R7d2 {[%emt 0:00:30]} Qg3+ {[%emt 0:00:10]} 40. Kh1 {[%emt 0:00:12]} Rxe4 {[%emt 0:00:04]} 41. Bxe4 {[%emt 0:30:05]} Qxh3+ {[%emt 0:31:02]} 42. Rh2 {[%emt 0:00:04]} Qe3 {[%emt 0:00:00]} 0-1

[Event "SWE-ch Junior 2019"]
[Site "Eskilstuna"]
[Date "2019.07.08"]
[Round "3.4"]
[White "Johnson, Daniel"]
[Black "Torngren, Gustav"]
[Result "1-0"]
[ECO "E38"]
[WhiteElo "2212"]
[BlackElo "2109"]
[Annotator "NA"]
[PlyCount "87"]
[EventDate "2019.07.06"]
[EventType "tourn"]
[EventCountry "SWE"]
[SourceTitle "playchess.com"]
[Source "ChessBase"]
[SourceQuality "1"]
[TimeControl "40/5400+30:1800+30"]

1. d4 {[%emt 0:00:00]} e6 {[%emt 0:00:00]} 2. c4 {[%emt 0:00:00]} Nf6 {[%emt 0:00:00]} 3. Nc3 {[%emt 0:00:00]} Bb4 {[%emt 0:00:00]} 4. Qc2 {[%emt 0:00:23]} c5 {[%emt 0:00:14]} 5. dxc5 {[%emt 0:01:07]} Bxc5 {[%emt 0:00:22]} 6. Nf3 {[%emt 0:05:33]} Qb6 {[%emt 0:01:01]} 7. e3 {[%emt 0:01:36]} Be7 {[%emt 0:02:35]} 8. Be2 {[%emt 0:03:05]} O-O {[%emt 0:01:02]} 9. O-O {[%emt 0:09:31]} d6 {[%emt 0:01:09]} 10. e4 {[%emt 0:03:10]} a6 {[%emt 0:04:07]} 11. Be3 {[%emt 0:10:42]} Qc7 {[%emt 0:06:30]} 12. Rac1 {[%emt 0:01:26]} b6 {[%emt 0:00:28]} 13. Nd4 {[%emt 0:04:04]} Bb7 {[%emt 0:02:07]} 14. f4 {[%emt 0:01:56]} Nc6 {[%emt 0:06:16]} 15. Nb3 {[%emt 0:03:41]} Nd7 {[%emt 0:03:41]} 16. Nd5 {[%emt 0:12:47]} Qd8 {[%emt 0:06:43]} 17. Nxe7+ {[%emt 0:03:52]} Qxe7 {[%emt 0:00:21]} 18. Rcd1 {[%emt 0:01:30]} Nc5 {[%emt 0:01:25]} 19. Bf3 {[%emt 0:07:48]} Rfd8 {[%emt 0:05:46]} 20. Qf2 {[%emt 0:06:22]} f6 {[%emt 0:02:34]} 21. Rfe1 {[%emt 0:06:47]} Nb4 {[%emt 0:05:40]} 22. Nc1 {[%emt 0:02:19]} Qc7 {[%emt 0:04:56]} 23. a3 {[%emt 0:03:05]} Nc6 {[%emt 0:00:02]} 24. b4 {[%emt 0:00:21]} Nd7 {[%emt 0:00:21]} 25. Qd2 {[%emt 0:02:10]} e5 {[%emt 0:03:04]} 26. Ne2 {[%emt 0:08:06]} Nf8 {[%emt 0:09:54]} 27. f5 {[%emt 0:00:28]} a5 {[%emt 0:00:04]} 28. Nc3 {[%emt 0:01:21]} Na7 {[%emt 0:01:57]} 29. Rc1 {[%emt 0:00:29]} Bc6 {[%emt 0:02:44]} 30. Qf2 {[%emt 0:00:24]} Nd7 {[%emt 0:00:49]} 31. Red1 {[%emt 0:00:47]} axb4 {[%emt 0:01:15]} 32. axb4 {[%emt 0:00:04]} Nc8 {[%emt 0:00:15]} 33. Qb2 {[%emt 0:00:46]} Ne7 {[%emt 0:00:25]} 34. Rd2 {[%emt 0:00:37]} g6 {[%emt 0:00:56]} 35. fxg6 {[%emt 0:00:27]} hxg6 {[%emt 0:00:10]} 36. Rcd1 {[%emt 0:00:37]} Nf8 {[%emt 0:00:10]} 37. Bg4 {[%emt 0:00:31]} f5 {[%emt 0:03:34]} 38. exf5 {[%emt 0:00:29]} gxf5 {[%emt 0:00:05]} 39. Bh3 {[%emt 0:00:35]} Be8 {[%emt 0:00:53]} 40. Bg5 {[%emt 0:00:32]} Bf7 {[%emt 0:06:36]} 41. Nb5 {[%emt 0:03:46]} Qxc4 {[%emt 0:03:34]} 42. Bxe7 {[%emt 0:03:19]} Qxb5 {[%emt 0:00:28]} 43. Bxd8 {[%emt 0:01:53]} Rxd8 {[%emt 0:00:13]} 44. Bxf5 {[%emt 0:02:12]} 1-0

[Event "SWE-ch Junior 2019"]
[Site "Eskilstuna"]
[Date "2019.07.08"]
[Round "3.5"]
[White "Rasti, Arvin"]
[Black "Sorensen, Hampus"]
[Result "0-1"]
[ECO "C49"]
[WhiteElo "2220"]
[BlackElo "2352"]
[Annotator "NA"]
[PlyCount "106"]
[EventDate "2019.07.06"]
[EventType "tourn"]
[EventCountry "SWE"]
[SourceTitle "playchess.com"]
[Source "ChessBase"]
[SourceQuality "1"]
[TimeControl "40/5400+30:1800+30"]

1. e4 {[%emt 0:00:00]} e5 {[%emt 0:00:00]} 2. Nf3 {[%emt 0:00:00]} Nc6 {[%emt 0:00:03]} 3. Nc3 {[%emt 0:00:00]} Nf6 {[%emt 0:00:21]} 4. Bb5 {[%emt 0:00:04]} Bb4 {[%emt 0:01:06]} 5. O-O {[%emt 0:00:09]} O-O {[%emt 0:02:32]} 6. d3 {[%emt 0:00:12]} Bxc3 {[%emt 0:02:02]} 7. bxc3 {[%emt 0:00:06]} d6 {[%emt 0:00:02]} 8. Bg5 {[%emt 0:00:11]} h6 {[%emt 0:06:49]} 9. Bh4 {[%emt 0:01:17]} Qe7 {[%emt 0:06:38]} 10. Re1 {[%emt 0:05:28]} Nd8 {[%emt 0:03:57]} 11. d4 {[%emt 0:05:10]} Bg4 {[%emt 0:07:16]} 12. h3 {[%emt 0:08:29]} Bxf3 {[%emt 0:02:25]} 13. Qxf3 {[%emt 0:00:28]} Ne6 {[%emt 0:00:23]} 14. Rad1 {[%emt 0:04:09]} Rad8 {[%emt 0:07:10]} 15. Bf1 {[%emt 0:09:59]} Nf4 {[%emt 0:04:37]} 16. g3 {[%emt 0:03:29]} Ne6 {[%emt 0:05:27]} 17. Bxf6 {[%emt 0:00:51]} Qxf6 {[%emt 0:00:09]} 18. Qxf6 {[%emt 0:00:24]} gxf6 {[%emt 0:00:02]} 19. Bc4 {[%emt 0:01:41]} Rfe8 {[%emt 0:04:15]} 20. Bxe6 {[%emt 0:03:44]} fxe6 {[%emt 0:00:15]} 21. f4 {[%emt 0:00:23]} exf4 {[%emt 0:07:50]} 22. gxf4 {[%emt 0:00:14]} Kf7 {[%emt 0:00:34]} 23. Kf2 {[%emt 0:00:54]} Rg8 {[%emt 0:03:13]} 24. Rg1 {[%emt 0:01:32]} f5 {[%emt 0:02:16]} 25. Rxg8 {[%emt 0:02:38]} Rxg8 {[%emt 0:00:52]} 26. e5 {[%emt 0:00:50]} h5 {[%emt 0:11:05]} 27. Kf3 {[%emt 0:15:08]} h4 {[%emt 0:01:28]} 28. Kf2 {[%emt 0:00:11]} d5 {[%emt 0:02:59]} 29. Rd3 {[%emt 0:01:42]} Ke7 {[%emt 0:00:34]} 30. Re3 {[%emt 0:01:44]} Kd7 {[%emt 0:01:15]} 31. a3 {[%emt 0:01:32]} Kc6 {[%emt 0:00:19]} 32. Ke2 {[%emt 0:00:20]} Kb5 {[%emt 0:03:00]} 33. Kd3 {[%emt 0:00:20]} c6 {[%emt 0:01:03]} 34. Rf3 {[%emt 0:02:19]} Rg2 {[%emt 0:01:26]} 35. Re3 {[%emt 0:00:18]} b6 {[%emt 0:02:49]} 36. Rf3 {[%emt 0:00:26]} Rg1 {[%emt 0:01:31]} 37. Kd2 {[%emt 0:00:25]} Rg2+ {[%emt 0:01:59]} 38. Kd3 {[%emt 0:00:07]} Rh2 {[%emt 0:00:22]} 39. Re3 {[%emt 0:00:17]} Rf2 {[%emt 0:00:18]} 40. a4+ {[%emt 0:00:30]} Kxa4 {[%emt 0:02:09]} 41. Re1 {[%emt 0:30:10]} Rf3+ {[%emt 0:30:19]} 42. Kd2 {[%emt 0:00:08]} Rxh3 {[%emt 0:00:00]} 43. Ra1+ {[%emt 0:00:00]} Kb5 {[%emt 0:00:00]} 44. Rxa7 {[%emt 0:00:00]} Rh2+ {[%emt 0:00:00]} 45. Kc1 {[%emt 0:00:00]} Rh1+ {[%emt 0:00:00]} 46. Kb2 {[%emt 0:00:00]} h3 {[%emt 0:00:00]} 47. Rh7 {[%emt 0:00:00]} c5 {[%emt 0:00:00]} 48. Rh6 {[%emt 0:00:00]} h2 {[%emt 0:00:00]} 49. Rh8 {[%emt 0:00:00]} Kc4 {[%emt 0:00:00]} 50. dxc5 {[%emt 0:00:00]} bxc5 {[%emt 0:00:00]} 51. Rh4 {[%emt 0:00:00]} d4 {[%emt 0:00:00]} 52. cxd4 {[%emt 0:00:00]} cxd4 {[%emt 0:00:00]} 53. Rh3 {[%emt 0:00:00]} Kd5 {[%emt 0:00:00]} 0-1

[Event "SWE-ch Junior 2019"]
[Site "Eskilstuna"]
[Date "2019.07.09"]
[Round "4.1"]
[White "Carlsson, Ludvig"]
[Black "Joensson, Jacob"]
[Result "1-0"]
[ECO "D59"]
[WhiteElo "2218"]
[BlackElo "1981"]
[Annotator "NA"]
[PlyCount "59"]
[EventDate "2019.07.06"]
[EventType "tourn"]
[EventCountry "SWE"]
[SourceTitle "playchess.com"]
[Source "ChessBase"]
[SourceQuality "1"]
[TimeControl "40/5400+30:1800+30"]

1. d4 {[%emt 0:00:00]} e6 {[%emt 0:00:00]} 2. c4 {[%emt 0:00:00]} d5 {[%emt 0:00:02]} 3. Nf3 {[%emt 0:00:03]} Nf6 {[%emt 0:00:05]} 4. Nc3 {[%emt 0:00:10]} Be7 {[%emt 0:00:09]} 5. Bg5 {[%emt 0:00:06]} O-O {[%emt 0:00:09]} 6. e3 {[%emt 0:00:06]} h6 {[%emt 0:00:07]} 7. Bh4 {[%emt 0:00:04]} b6 {[%emt 0:00:09]} 8. cxd5 {[%emt 0:00:06]} Nxd5 {[%emt 0:00:09]} 9. Bxe7 {[%emt 0:00:06]} Qxe7 {[%emt 0:00:06]} 10. Nxd5 {[%emt 0:00:05]} exd5 {[%emt 0:00:06]} 11. Qb3 {[%emt 0:00:03]} Rd8 {[%emt 0:01:46]} 12. Rc1 {[%emt 0:01:21]} Be6 {[%emt 0:26:04]} 13. Rc3 {[%emt 0:09:25]} c5 {[%emt 0:06:59]} 14. Qa3 {[%emt 0:00:51]} Rc8 {[%emt 0:09:25]} 15. Be2 {[%emt 0:01:51]} Rc7 {[%emt 0:06:30]} 16. dxc5 {[%emt 0:01:07]} bxc5 {[%emt 0:00:15]} 17. O-O {[%emt 0:00:18]} Kf8 {[%emt 0:09:44]} 18. Nd4 {[%emt 0:01:22]} Nd7 {[%emt 0:08:03]} 19. Rfc1 {[%emt 0:05:33]} Rb7 {[%emt 0:05:50]} 20. Bb5 {[%emt 0:00:50]} Rb6 {[%emt 0:10:58]} 21. Bxd7 {[%emt 0:00:45]} Qxd7 {[%emt 0:00:32]} 22. Rxc5 {[%emt 0:00:19]} Kg8 {[%emt 0:00:12]} 23. Rc7 {[%emt 0:05:03]} Qd6 {[%emt 0:00:25]} 24. Qxd6 {[%emt 0:02:22]} Rxd6 {[%emt 0:00:06]} 25. R1c6 {[%emt 0:00:17]} Rxc6 {[%emt 0:03:02]} 26. Rxc6 {[%emt 0:00:07]} Kf8 {[%emt 0:00:36]} 27. Nxe6+ {[%emt 0:00:27]} fxe6 {[%emt 0:00:05]} 28. Rxe6 {[%emt 0:00:04]} Rc8 {[%emt 0:00:06]} 29. g3 {[%emt 0:00:06]} Rc2 {[%emt 0:00:23]} 30. Ra6 {[%emt 0:00:12]} 1-0

[Event "SWE-ch Junior 2019"]
[Site "Eskilstuna"]
[Date "2019.07.09"]
[Round "4.2"]
[White "Petersson, Baldur Teodor"]
[Black "Storme, Isak"]
[Result "0-1"]
[ECO "C54"]
[WhiteElo "2179"]
[BlackElo "2330"]
[Annotator "NA"]
[PlyCount "62"]
[EventDate "2019.07.06"]
[EventType "tourn"]
[EventCountry "SWE"]
[SourceTitle "playchess.com"]
[Source "ChessBase"]
[SourceQuality "1"]
[TimeControl "40/5400+30:1800+30"]

1. e4 {[%emt 0:00:00]} e5 {[%emt 0:00:00]} 2. Nf3 {[%emt 0:00:00]} Nc6 {[%emt 0:00:00]} 3. Bc4 {[%emt 0:00:00]} Bc5 {[%emt 0:00:00]} 4. c3 {[%emt 0:00:00]} Nf6 {[%emt 0:00:00]} 5. d3 {[%emt 0:00:00]} a6 {[%emt 0:00:01]} 6. O-O {[%emt 0:00:17]} d6 {[%emt 0:00:35]} 7. Bb3 {[%emt 0:00:16]} Ba7 {[%emt 0:00:21]} 8. Nbd2 {[%emt 0:00:16]} O-O {[%emt 0:01:08]} 9. h3 {[%emt 0:00:07]} Kh8 {[%emt 0:00:38]} 10. Re1 {[%emt 0:06:18]} Ng8 {[%emt 0:01:27]} 11. Nf1 {[%emt 0:06:44]} f5 {[%emt 0:02:32]} 12. exf5 {[%emt 0:01:06]} Bxf5 {[%emt 0:00:09]} 13. Be3 {[%emt 0:00:13]} Qf6 {[%emt 0:08:09]} 14. Bxa7 {[%emt 0:01:10]} Rxa7 {[%emt 0:00:10]} 15. Re3 {[%emt 0:00:22]} Nge7 {[%emt 0:05:26]} 16. g4 {[%emt 0:15:11]} Be6 {[%emt 0:04:47]} 17. Ng3 {[%emt 0:01:42]} Bxb3 {[%emt 0:07:36]} 18. Qxb3 {[%emt 0:22:38]} Na5 {[%emt 0:01:09]} 19. g5 {[%emt 0:12:25]} Qg6 {[%emt 0:03:43]} 20. Qb4 {[%emt 0:12:12]} Nd5 {[%emt 0:08:29]} 21. Nxe5 {[%emt 0:00:16]} Qe6 {[%emt 0:13:32]} 22. Qd4 {[%emt 0:06:26]} Nxe3 {[%emt 0:06:17]} 23. Qxa7 {[%emt 0:00:06]} Nc2 {[%emt 0:09:06]} 24. Rc1 {[%emt 0:00:12]} Qxa2 {[%emt 0:01:58]} 25. Nd7 {[%emt 0:05:17]} Re8 {[%emt 0:03:36]} 26. Ne4 {[%emt 0:02:36]} Qxb2 {[%emt 0:00:58]} 27. Rxc2 {[%emt 0:00:15]} Qxc2 {[%emt 0:02:23]} 28. Qd4 {[%emt 0:00:03]} Qb1+ {[%emt 0:02:45]} 29. Kg2 {[%emt 0:00:41]} Qb5 {[%emt 0:01:21]} 30. Ndf6 {[%emt 0:00:36]} Nc6 {[%emt 0:00:58]} 31. Qd5 {[%emt 0:00:33]} Qxd5 {[%emt 0:00:15]} 0-1